[Event "ETCC Open 2023"]
[Site "Budva"]
[Date "2023.11.13"]
[Round "3.62"]
[White "Sipila, Vilka"]
[Black "Krivokapic, Marko"]
[Result "1-0"]
[ECO "B81"]
[WhiteElo "2429"]
[BlackElo "2386"]
[Annotator "RC"]
[PlyCount "63"]
[EventDate "2023.11.10"]
[EventType "team-tourn"]
[EventCountry "MNE"]
[SourceTitle "playchess.com"]
[Source "ChessBase"]
[SourceQuality "1"]
[WhiteTeam "Finland"]
[BlackTeam "Montenegro"]
[WhiteTeamCountry "FIN"]
[BlackTeamCountry "MNE"]
[TimeControl "40/5400+30:1800+30"]

1. e4 {[%emt 0:00:56]} c5 {[%emt 0:00:16]} 2. Nf3 {[%emt 0:00:05]} d6 {[%emt 0:00:25]} 3. d4 {[%emt 0:00:10]} cxd4 {[%emt 0:00:08]} 4. Nxd4 {[%emt 0:00:03]} Nf6 {[%emt 0:00:14]} 5. Nc3 {[%emt 0:00:06]} a6 {[%emt 0:00:13]} 6. h4 {[%emt 0:00:06]} e6 {[%emt 0:03:01]} 7. g4 {[%emt 0:00:08]} Nc6 {[%emt 0:06:31]} 8. g5 {[%emt 0:00:19]} Nd7 {[%emt 0:00:31]} 9. Be3 {[%emt 0:00:13]} Qc7 {[%emt 0:05:10]} 10. f4 {[%emt 0:03:01]} b5 {[%emt 0:02:05]} 11. Nxc6 {[%emt 0:01:57]} Qxc6 {[%emt 0:00:07]} 12. a3 {[%emt 0:00:20]} Nb6 {[%emt 0:13:10]} 13. Bd4 {[%emt 0:05:16]} Nc4 {[%emt 0:17:44]} 14. b3 {[%emt 0:00:55]} Ne3 {[%emt 0:02:42]} 15. Qd3 {[%emt 0:04:16]} Nxf1 {[%emt 0:00:57]} 16. Rxf1 {[%emt 0:00:05]} Bb7 {[%emt 0:12:28]} 17. f5 {[%emt 0:00:46]} Rc8 {[%emt 0:08:17]} 18. fxe6 {[%emt 0:09:33]} fxe6 {[%emt 0:00:06]} 19. Qf3 {[%emt 0:00:06]} Qc7 {[%emt 0:07:39]} 20. Nd5 {[%emt 0:02:06]} exd5 {[%emt 0:01:07]} 21. exd5 {[%emt 0:00:06]} Kd8 {[%emt 0:03:14]} 22. c4 {[%emt 0:04:19]} bxc4 {[%emt 0:02:57]} 23. bxc4 {[%emt 0:00:43]} Qa5+ {[%emt 0:00:20]} 24. Bc3 {[%emt 0:00:51]} Qb6 {[%emt 0:00:39]} 25. Qd3 {[%emt 0:15:00]} Rc7 {[%emt 0:00:24]} 26. Rb1 {[%emt 0:03:08]} Qc5 {[%emt 0:00:13]} 27. Rb4 {[%emt 0:01:20]} Re7+ {[%emt 0:06:30]} 28. Kd2 {[%emt 0:00:10]} Kc8 {[%emt 0:00:58]} 29. Bd4 {[%emt 0:03:16]} Qc7 {[%emt 0:00:05]} 30. Rfb1 {[%emt 0:08:27]} Qd8 {[%emt 0:00:07]} 31. Ba7 {[%emt 0:00:08]} Qc7 {[%emt 0:06:21]} 32. Qh3+ {[%emt 0:00:36]} 1-0

[Event "ETCC Open 2023"]
[Site "Budva"]
[Date "2023.11.13"]
[Round "3.63"]
[White "Draganic, Veljko"]
[Black "Valkama, Eero"]
[Result "1-0"]
[ECO "C86"]
[WhiteElo "2294"]
[BlackElo "2310"]
[Annotator "ChessBase"]
[PlyCount "91"]
[EventDate "2023.11.10"]
[EventType "team-tourn"]
[EventCountry "MNE"]
[SourceTitle "playchess.com"]
[Source "ChessBase"]
[SourceQuality "1"]
[WhiteTeam "Montenegro"]
[BlackTeam "Finland"]
[WhiteTeamCountry "MNE"]
[BlackTeamCountry "FIN"]
[TimeControl "40/5400+30:1800+30"]

1. e4 {[%emt 0:00:03]} e5 {[%emt 0:01:18]} 2. Nf3 {[%emt 0:00:20]} Nc6 {[%emt 0:00:08]} 3. Bb5 {[%emt 0:00:02]} a6 {[%emt 0:00:07]} 4. Ba4 {[%emt 0:00:04]} Nf6 {[%emt 0:00:06]} 5. Qe2 {[%emt 0:00:02]} b5 {[%emt 0:03:08]} 6. Bb3 {[%emt 0:00:32]} Be7 {[%emt 0:00:31]} 7. O-O {[%emt 0:00:10]} d6 {[%emt 0:00:20]} 8. c3 {[%emt 0:00:04]} O-O {[%emt 0:01:43]} 9. Rd1 {[%emt 0:00:09]} Na5 {[%emt 0:02:16]} 10. Bc2 {[%emt 0:00:11]} c5 {[%emt 0:00:07]} 11. d4 {[%emt 0:00:05]} Qc7 {[%emt 0:08:54]} 12. d5 {[%emt 0:00:12]} c4 {[%emt 0:00:45]} 13. Nbd2 {[%emt 0:00:23]} g6 {[%emt 0:02:37]} 14. Nf1 {[%emt 0:08:10]} Nh5 {[%emt 0:00:27]} 15. Bh6 {[%emt 0:02:07]} Ng7 {[%emt 0:02:27]} 16. Ng3 {[%emt 0:00:44]} Nb7 {[%emt 0:00:50]} 17. h3 {[%emt 0:01:34]} Bd7 {[%emt 0:07:26]} 18. Nh2 {[%emt 0:03:03]} f6 {[%emt 0:14:57]} 19. f4 {[%emt 0:04:28]} exf4 {[%emt 0:02:52]} 20. Bxf4 {[%emt 0:02:41]} Rae8 {[%emt 0:02:24]} 21. Qd2 {[%emt 0:03:03]} f5 {[%emt 0:11:19]} 22. exf5 {[%emt 0:07:23]} Nxf5 {[%emt 0:01:05]} 23. Nxf5 {[%emt 0:02:56]} Bxf5 {[%emt 0:00:02]} 24. Bxf5 {[%emt 0:00:26]} Rxf5 {[%emt 0:00:02]} 25. Ng4 {[%emt 0:01:00]} Bf8 {[%emt 0:06:04]} 26. Bh6 {[%emt 0:02:51]} Kh8 {[%emt 0:11:53]} 27. Re1 {[%emt 0:09:23]} Rb8 {[%emt 0:07:41]} 28. b4 {[%emt 0:13:12]} cxb3 {[%emt 0:03:58]} 29. axb3 {[%emt 0:00:07]} Nc5 {[%emt 0:00:29]} 30. c4 {[%emt 0:02:58]} bxc4 {[%emt 0:02:54]} 31. bxc4 {[%emt 0:00:22]} Bg7 {[%emt 0:00:38]} 32. Rab1 {[%emt 0:01:05]} Rbf8 {[%emt 0:01:30]} 33. Kh2 {[%emt 0:01:23]} Bxh6 {[%emt 0:01:54]} 34. Nxh6 {[%emt 0:02:48]} Rf4 {[%emt 0:00:18]} 35. Re8 {[%emt 0:02:34]} Rxe8 {[%emt 0:02:18]} 36. Qxf4 {[%emt 0:00:11]} Qe7 {[%emt 0:02:30]} 37. Re1 {[%emt 0:00:36]} Rf8 {[%emt 0:00:26]} 38. Rxe7 {[%emt 0:02:59]} Rxf4 {[%emt 0:00:02]} 39. Nf7+ {[%emt 0:00:30]} Kg8 {[%emt 0:00:11]} 40. Nxd6 {[%emt 0:00:20]} a5 {[%emt 0:01:18]} 41. Rc7 {[%emt 0:30:44]} Nb3 {[%emt 0:30:26]} 42. Nb7 {[%emt 0:01:25]} a4 {[%emt 0:00:21]} 43. d6 {[%emt 0:00:25]} a3 {[%emt 0:00:16]} 44. Rc8+ {[%emt 0:00:45]} Kg7 {[%emt 0:00:48]} 45. Ra8 {[%emt 0:00:29]} Rxc4 {[%emt 0:00:00]} 46. d7 {[%emt 0:00:00]} 1-0

[Event "ETCC Open 2023"]
[Site "Budva"]
[Date "2023.11.13"]
[Round "3.64"]
[White "Wartiovaara, Oliver"]
[Black "Miletic, Vuk"]
[Result "1-0"]
[ECO "B31"]
[WhiteElo "2270"]
[BlackElo "2190"]
[Annotator "ChessBase"]
[PlyCount "81"]
[EventDate "2023.11.10"]
[EventType "team-tourn"]
[EventCountry "MNE"]
[SourceTitle "playchess.com"]
[Source "ChessBase"]
[SourceQuality "1"]
[WhiteTeam "Finland"]
[BlackTeam "Montenegro"]
[WhiteTeamCountry "FIN"]
[BlackTeamCountry "MNE"]
[TimeControl "40/5400+30:1800+30"]

1. e4 {[%emt 0:00:02]} c5 {[%emt 0:00:08]} 2. Nf3 {[%emt 0:00:08]} Nc6 {[%emt 0:00:09]} 3. Bb5 {[%emt 0:00:06]} g6 {[%emt 0:00:36]} 4. O-O {[%emt 0:00:08]} Bg7 {[%emt 0:00:02]} 5. c3 {[%emt 0:00:05]} Nf6 {[%emt 0:00:22]} 6. Re1 {[%emt 0:00:04]} O-O {[%emt 0:01:15]} 7. d4 {[%emt 0:00:04]} cxd4 {[%emt 0:00:56]} 8. cxd4 {[%emt 0:00:05]} d5 {[%emt 0:00:03]} 9. e5 {[%emt 0:00:05]} Ne4 {[%emt 0:00:26]} 10. Be3 {[%emt 0:00:06]} Qb6 {[%emt 0:23:23]} 11. Qe2 {[%emt 0:00:07]} Bd7 {[%emt 0:19:23]} 12. a4 {[%emt 0:00:06]} f6 {[%emt 0:15:01]} 13. Nc3 {[%emt 0:40:40]} Nxc3 {[%emt 0:03:32]} 14. bxc3 {[%emt 0:00:05]} a6 {[%emt 0:03:28]} 15. Bd3 {[%emt 0:02:00]} fxe5 {[%emt 0:03:43]} 16. Nxe5 {[%emt 0:09:11]} Nxe5 {[%emt 0:05:18]} 17. dxe5 {[%emt 0:00:05]} Qc7 {[%emt 0:07:00]} 18. Bd4 {[%emt 0:00:16]} Bf5 {[%emt 0:04:46]} 19. Rad1 {[%emt 0:04:46]} e6 {[%emt 0:01:58]} 20. h4 {[%emt 0:00:22]} Qd7 {[%emt 0:02:47]} 21. Bc2 {[%emt 0:05:43]} b5 {[%emt 0:01:55]} 22. Bb3 {[%emt 0:04:30]} bxa4 {[%emt 0:01:23]} 23. Ba2 {[%emt 0:00:05]} Qe7 {[%emt 0:00:27]} 24. h5 {[%emt 0:06:41]} gxh5 {[%emt 0:01:34]} 25. Qxh5 {[%emt 0:00:09]} Bg6 {[%emt 0:01:11]} 26. Qg4 {[%emt 0:00:52]} Rf5 {[%emt 0:00:28]} 27. f3 {[%emt 0:09:14]} Rg5 {[%emt 0:00:53]} 28. Qh3 {[%emt 0:00:04]} Rb8 {[%emt 0:01:32]} 29. c4 {[%emt 0:02:43]} Bf5 {[%emt 0:00:21]} 30. Qh2 {[%emt 0:00:07]} Qa3 {[%emt 0:00:44]} 31. Qf4 {[%emt 0:00:58]} Bh6 {[%emt 0:00:30]} 32. Qd2 {[%emt 0:02:34]} Bh3 {[%emt 0:00:39]} 33. Re3 {[%emt 0:01:01]} Qf8 {[%emt 0:00:34]} 34. Re2 {[%emt 0:01:31]} Rg6 {[%emt 0:00:27]} 35. Be3 {[%emt 0:02:20]} Bxe3+ {[%emt 0:00:02]} 36. Qxe3 {[%emt 0:00:08]} Qg7 {[%emt 0:00:07]} 37. Rdd2 {[%emt 0:00:39]} dxc4 {[%emt 0:01:09]} 38. Bxc4 {[%emt 0:00:26]} Rb1+ {[%emt 0:00:40]} 39. Kh2 {[%emt 0:00:15]} Bxg2 {[%emt 0:00:36]} 40. Rd8+ {[%emt 0:00:10]} Kf7 {[%emt 0:00:05]} 41. Qa7+ {[%emt 0:30:05]} 1-0

[Event "ETCC Open 2023"]
[Site "Budva"]
[Date "2023.11.13"]
[Round "3.65"]
[White "Nikolovski, Nikola"]
[Black "Nielsen, Hogni Egilstoft"]
[Result "1/2-1/2"]
[ECO "C49"]
[WhiteElo "2405"]
[BlackElo "2387"]
[Annotator "RC"]
[PlyCount "66"]
[EventDate "2023.11.10"]
[EventType "team-tourn"]
[EventCountry "MNE"]
[SourceTitle "playchess.com"]
[Source "ChessBase"]
[SourceQuality "1"]
[WhiteTeam "Macedonia"]
[BlackTeam "Faroe Islands"]
[WhiteTeamCountry "MKD"]
[BlackTeamCountry "FAI"]
[TimeControl "40/5400+30:1800+30"]

1. e4 {[%emt 0:00:22]} e5 {[%emt 0:00:22]} 2. Nf3 {[%emt 0:00:23]} Nc6 {[%emt 0:00:07]} 3. Nc3 {[%emt 0:00:40]} Nf6 {[%emt 0:00:39]} 4. Bb5 {[%emt 0:00:34]} Bb4 {[%emt 0:14:26]} 5. O-O {[%emt 0:01:18]} O-O {[%emt 0:10:52]} 6. Bxc6 {[%emt 0:02:23]} dxc6 {[%emt 0:02:57]} 7. d3 {[%emt 0:02:01]} Nd7 {[%emt 0:16:46]} 8. Ne2 {[%emt 0:03:04]} Re8 {[%emt 0:01:19]} 9. Ng3 {[%emt 0:02:20]} Nf8 {[%emt 0:01:33]} 10. h3 {[%emt 0:01:10]} Bd6 {[%emt 0:05:07]} 11. Bg5 {[%emt 0:11:38]} f6 {[%emt 0:01:34]} 12. Be3 {[%emt 0:01:44]} Ng6 {[%emt 0:03:42]} 13. Nh5 {[%emt 0:06:45]} Be6 {[%emt 0:05:18]} 14. Nd2 {[%emt 0:05:44]} Qd7 {[%emt 0:07:47]} 15. Qf3 {[%emt 0:02:21]} Rf8 {[%emt 0:02:31]} 16. g4 {[%emt 0:13:28]} Rad8 {[%emt 0:19:39]} 17. Kh1 {[%emt 0:02:48]} c5 {[%emt 0:02:24]} 18. a4 {[%emt 0:07:00]} Qc6 {[%emt 0:00:44]} 19. b3 {[%emt 0:03:13]} Rd7 {[%emt 0:00:26]} 20. Kg1 {[%emt 0:11:16]} b6 {[%emt 0:00:35]} 21. Qg3 {[%emt 0:07:42]} a6 {[%emt 0:00:46]} 22. Nc4 {[%emt 0:01:46]} Bxc4 {[%emt 0:00:46]} 23. bxc4 {[%emt 0:00:07]} a5 {[%emt 0:00:11]} 24. h4 {[%emt 0:08:19]} Rdf7 {[%emt 0:00:32]} 25. f3 {[%emt 0:00:25]} Rd8 {[%emt 0:00:29]} 26. Qh2 {[%emt 0:04:07]} Qd7 {[%emt 0:00:23]} 27. Rf2 {[%emt 0:00:17]} Nf8 {[%emt 0:00:20]} 28. Ng3 {[%emt 0:00:35]} g6 {[%emt 0:00:30]} 29. h5 {[%emt 0:00:28]} Ne6 {[%emt 0:01:03]} 30. Qh4 {[%emt 0:00:53]} g5 {[%emt 0:01:06]} 31. Qh3 {[%emt 0:00:18]} h6 {[%emt 0:00:23]} 32. Nf5 {[%emt 0:00:09]} Kh7 {[%emt 0:00:16]} 33. Qf1 {[%emt 0:00:13]} Ng7 {[%emt 0:00:23]} 1/2-1/2

[Event "ETCC Open 2023"]
[Site "Budva"]
[Date "2023.11.13"]
[Round "3.66"]
[White "Poulsen, Martin"]
[Black "Risteski, Emil"]
[Result "0-1"]
[ECO "B21"]
[WhiteElo "2291"]
[BlackElo "2379"]
[Annotator "ChessBase"]
[PlyCount "70"]
[EventDate "2023.11.10"]
[EventType "team-tourn"]
[EventCountry "MNE"]
[SourceTitle "playchess.com"]
[Source "ChessBase"]
[SourceQuality "1"]
[WhiteTeam "Faroe Islands"]
[BlackTeam "Macedonia"]
[WhiteTeamCountry "FAI"]
[BlackTeamCountry "MKD"]
[TimeControl "40/5400+30:1800+30"]

1. e4 {[%emt 0:00:39]} c5 {[%emt 0:00:17]} 2. Be2 {[%emt 0:00:12]} Nc6 {[%emt 0:00:08]} 3. d3 {[%emt 0:01:03]} d5 {[%emt 0:01:33]} 4. f4 {[%emt 0:01:47]} g6 {[%emt 0:01:29]} 5. Nf3 {[%emt 0:04:50]} Nf6 {[%emt 0:00:27]} 6. e5 {[%emt 0:01:16]} Nh5 {[%emt 0:00:06]} 7. d4 {[%emt 0:10:37]} Bh6 {[%emt 0:07:47]} 8. g3 {[%emt 0:05:10]} cxd4 {[%emt 0:10:20]} 9. Nxd4 {[%emt 0:05:14]} Ng7 {[%emt 0:00:10]} 10. Nc3 {[%emt 0:15:59]} O-O {[%emt 0:04:51]} 11. Bf3 {[%emt 0:09:56]} Kh8 {[%emt 0:05:56]} 12. Nxc6 {[%emt 0:07:49]} bxc6 {[%emt 0:00:51]} 13. g4 {[%emt 0:01:35]} Ne6 {[%emt 0:04:49]} 14. g5 {[%emt 0:02:15]} Bg7 {[%emt 0:00:27]} 15. h4 {[%emt 0:01:11]} f6 {[%emt 0:01:00]} 16. h5 {[%emt 0:01:56]} Kg8 {[%emt 0:00:51]} 17. hxg6 {[%emt 0:04:56]} fxg5 {[%emt 0:02:38]} 18. Rxh7 {[%emt 0:02:28]} Nxf4 {[%emt 0:01:26]} 19. Bxf4 {[%emt 0:05:44]} Rxf4 {[%emt 0:00:12]} 20. Nxd5 {[%emt 0:02:04]} Rf8 {[%emt 0:02:37]} 21. Qe2 {[%emt 0:04:47]} Bf5 {[%emt 0:20:01]} 22. O-O-O {[%emt 0:03:06]} Bxg6 {[%emt 0:04:40]} 23. Nf6+ {[%emt 0:01:45]} exf6 {[%emt 0:00:06]} 24. Rxg7+ {[%emt 0:01:57]} Kxg7 {[%emt 0:01:07]} 25. Rxd8 {[%emt 0:00:03]} Raxd8 {[%emt 0:00:55]} 26. exf6+ {[%emt 0:02:13]} Kxf6 {[%emt 0:00:12]} 27. Bxc6 {[%emt 0:00:21]} Bf5 {[%emt 0:08:20]} 28. b4 {[%emt 0:00:45]} Rd4 {[%emt 0:03:22]} 29. a3 {[%emt 0:02:33]} Rfd8 {[%emt 0:00:23]} 30. Qa6 {[%emt 0:00:42]} R8d6 {[%emt 0:01:00]} 31. Qxa7 {[%emt 0:00:34]} Rd1+ {[%emt 0:01:04]} 32. Kb2 {[%emt 0:00:04]} Rxc6 {[%emt 0:00:10]} 33. c4 {[%emt 0:00:37]} Rcd6 {[%emt 0:07:16]} 34. Kb3 {[%emt 0:00:48]} R6d3+ {[%emt 0:00:21]} 35. Ka4 {[%emt 0:00:26]} Rxa3+ {[%emt 0:00:11]} 0-1

[Event "ETCC Open 2023"]
[Site "Budva"]
[Date "2023.11.13"]
[Round "3.67"]
[White "Pancevski, Filip"]
[Black "Egilstoft, Rogvi"]
[Result "1/2-1/2"]
[ECO "A26"]
[WhiteElo "2441"]
[BlackElo "2254"]
[Annotator "RC"]
[PlyCount "79"]
[EventDate "2023.11.10"]
[EventType "team-tourn"]
[EventCountry "MNE"]
[SourceTitle "playchess.com"]
[Source "ChessBase"]
[SourceQuality "1"]
[WhiteTeam "Macedonia"]
[BlackTeam "Faroe Islands"]
[WhiteTeamCountry "MKD"]
[BlackTeamCountry "FAI"]
[TimeControl "40/5400+30:1800+30"]

1. g3 {[%emt 0:00:01]} g6 {[%emt 0:02:58]} 2. c4 {[%emt 0:00:06]} Bg7 {[%emt 0:00:47]} 3. Nc3 {[%emt 0:00:02]} f5 {[%emt 0:01:55]} 4. Bg2 {[%emt 0:00:58]} Nf6 {[%emt 0:00:44]} 5. d3 {[%emt 0:00:02]} d6 {[%emt 0:05:33]} 6. e4 {[%emt 0:01:35]} Nc6 {[%emt 0:02:08]} 7. Nge2 {[%emt 0:00:00]} O-O {[%emt 0:03:33]} 8. h3 {[%emt 0:04:33]} e5 {[%emt 0:09:53]} 9. O-O {[%emt 0:06:28]} Nd4 {[%emt 0:05:42]} 10. Nxd4 {[%emt 0:36:53]} exd4 {[%emt 0:00:13]} 11. Ne2 {[%emt 0:00:06]} c5 {[%emt 0:16:05]} 12. exf5 {[%emt 0:00:55]} Bxf5 {[%emt 0:00:29]} 13. Bg5 {[%emt 0:05:59]} Qd7 {[%emt 0:05:57]} 14. Kh2 {[%emt 0:03:03]} Rae8 {[%emt 0:03:32]} 15. Nf4 {[%emt 0:02:18]} b5 {[%emt 0:20:03]} 16. b3 {[%emt 0:01:29]} h6 {[%emt 0:04:53]} 17. Bxf6 {[%emt 0:01:06]} Bxf6 {[%emt 0:00:15]} 18. Nd5 {[%emt 0:01:00]} Be6 {[%emt 0:02:16]} 19. cxb5 {[%emt 0:04:21]} Be5 {[%emt 0:07:42]} 20. f4 {[%emt 0:01:12]} Bg7 {[%emt 0:00:35]} 21. a4 {[%emt 0:02:55]} Rf5 {[%emt 0:01:26]} 22. g4 {[%emt 0:22:14]} Rxd5 {[%emt 0:00:13]} 23. Be4 {[%emt 0:00:20]} g5 {[%emt 0:01:01]} 24. Qf3 {[%emt 0:00:05]} Qf7 {[%emt 0:02:48]} 25. f5 {[%emt 0:00:10]} Re5 {[%emt 0:00:23]} 26. fxe6 {[%emt 0:00:08]} Qxe6 {[%emt 0:00:30]} 27. Rae1 {[%emt 0:03:14]} Rf8 {[%emt 0:01:40]} 28. Bf5 {[%emt 0:01:54]} Qxb3 {[%emt 0:00:06]} 29. Rxe5 {[%emt 0:00:45]} Bxe5+ {[%emt 0:00:13]} 30. Kh1 {[%emt 0:00:01]} Kg7 {[%emt 0:00:51]} 31. Rf2 {[%emt 0:01:17]} Rf7 {[%emt 0:00:58]} 32. Kg2 {[%emt 0:00:37]} Bf4 {[%emt 0:00:33]} 33. Qe4 {[%emt 0:00:27]} Be5 {[%emt 0:00:17]} 34. Qc6 {[%emt 0:00:30]} Qxa4 {[%emt 0:00:37]} 35. Re2 {[%emt 0:00:18]} Qb3 {[%emt 0:00:27]} 36. Qe8 {[%emt 0:00:26]} Qd5+ {[%emt 0:00:24]} 37. Be4 {[%emt 0:00:07]} Qb3 {[%emt 0:00:15]} 38. Bf5 {[%emt 0:00:07]} Qd5+ {[%emt 0:00:54]} 39. Be4 {[%emt 0:00:01]} Qb3 {[%emt 0:00:07]} 40. Bf5 {[%emt 0:00:28]} 1/2-1/2

[Event "ETCC Open 2023"]
[Site "Budva"]
[Date "2023.11.13"]
[Round "3.68"]
[White "Rodgaard, John"]
[Black "Lazov, Toni"]
[Result "1/2-1/2"]
[ECO "E94"]
[WhiteElo "2281"]
[BlackElo "2377"]
[Annotator "ChessBase"]
[PlyCount "64"]
[EventDate "2023.11.10"]
[EventType "team-tourn"]
[EventCountry "MNE"]
[SourceTitle "playchess.com"]
[Source "ChessBase"]
[SourceQuality "1"]
[WhiteTeam "Faroe Islands"]
[BlackTeam "Macedonia"]
[WhiteTeamCountry "FAI"]
[BlackTeamCountry "MKD"]
[TimeControl "40/5400+30:1800+30"]

1. Nf3 {[%emt 0:00:37]} g6 {[%emt 0:00:06]} 2. c4 {[%emt 0:00:54]} Bg7 {[%emt 0:00:02]} 3. d4 {[%emt 0:01:31]} d6 {[%emt 0:00:04]} 4. Nc3 {[%emt 0:01:12]} Nd7 {[%emt 0:00:10]} 5. e4 {[%emt 0:01:33]} e5 {[%emt 0:00:10]} 6. Be2 {[%emt 0:00:52]} Ngf6 {[%emt 0:00:20]} 7. O-O {[%emt 0:00:38]} O-O {[%emt 0:00:04]} 8. Qc2 {[%emt 0:02:49]} Qe7 {[%emt 0:00:22]} 9. Rd1 {[%emt 0:03:54]} c6 {[%emt 0:08:59]} 10. Rb1 {[%emt 0:05:58]} a5 {[%emt 0:01:54]} 11. dxe5 {[%emt 0:20:56]} dxe5 {[%emt 0:01:55]} 12. Na4 {[%emt 0:03:21]} Re8 {[%emt 0:25:48]} 13. h3 {[%emt 0:05:41]} b6 {[%emt 0:12:41]} 14. Be3 {[%emt 0:02:22]} Rb8 {[%emt 0:00:16]} 15. c5 {[%emt 0:12:50]} b5 {[%emt 0:02:41]} 16. Nb6 {[%emt 0:00:18]} Bf8 {[%emt 0:01:18]} 17. Rbc1 {[%emt 0:04:36]} Nxb6 {[%emt 0:08:40]} 18. cxb6 {[%emt 0:00:05]} Bb7 {[%emt 0:00:04]} 19. Nd2 {[%emt 0:06:43]} a4 {[%emt 0:00:40]} 20. b3 {[%emt 0:01:36]} a3 {[%emt 0:01:17]} 21. f3 {[%emt 0:01:24]} Nd7 {[%emt 0:12:16]} 22. Nb1 {[%emt 0:02:14]} Red8 {[%emt 0:05:31]} 23. Bf1 {[%emt 0:04:17]} Ba8 {[%emt 0:01:19]} 24. Qf2 {[%emt 0:00:24]} Qe6 {[%emt 0:02:59]} 25. Kh2 {[%emt 0:03:16]} Bb4 {[%emt 0:02:38]} 26. h4 {[%emt 0:01:06]} f5 {[%emt 0:02:42]} 27. exf5 {[%emt 0:03:13]} gxf5 {[%emt 0:00:08]} 28. g3 {[%emt 0:00:48]} Rf8 {[%emt 0:02:02]} 29. Rc2 {[%emt 0:02:58]} Rf7 {[%emt 0:00:17]} 30. Bh3 {[%emt 0:03:05]} Bf8 {[%emt 0:04:08]} 31. Nc3 {[%emt 0:01:13]} Kh8 {[%emt 0:03:17]} 32. Ne4 {[%emt 0:00:53]} Qg6 {[%emt 0:00:36]} 1/2-1/2

[Event "ETCC Open 2023"]
[Site "Budva"]
[Date "2023.11.13"]
[Round "3.69"]
[White "Saraci, Nderim"]
[Black "Pasko, Llambi"]
[Result "1-0"]
[ECO "C56"]
[WhiteElo "2466"]
[BlackElo "2395"]
[Annotator "RC"]
[PlyCount "127"]
[EventDate "2023.11.10"]
[EventType "team-tourn"]
[EventCountry "MNE"]
[SourceTitle "playchess.com"]
[Source "ChessBase"]
[SourceQuality "1"]
[WhiteTeam "Kosovo"]
[BlackTeam "Albania"]
[WhiteTeamCountry "KOS"]
[BlackTeamCountry "ALB"]
[TimeControl "40/5400+30:1800+30"]

1. e4 {[%emt 0:00:04]} e5 {[%emt 0:00:56]} 2. Nf3 {[%emt 0:00:29]} Nc6 {[%emt 0:00:21]} 3. d4 {[%emt 0:03:54]} exd4 {[%emt 0:00:31]} 4. Bc4 {[%emt 0:00:42]} Nf6 {[%emt 0:02:07]} 5. e5 {[%emt 0:04:32]} d5 {[%emt 0:00:19]} 6. Bb5 {[%emt 0:00:20]} Ne4 {[%emt 0:00:33]} 7. Nxd4 {[%emt 0:00:50]} Bd7 {[%emt 0:01:51]} 8. Bxc6 {[%emt 0:00:17]} bxc6 {[%emt 0:00:04]} 9. O-O {[%emt 0:00:10]} Bc5 {[%emt 0:00:20]} 10. Be3 {[%emt 0:00:53]} Bb6 {[%emt 0:02:34]} 11. f3 {[%emt 0:02:03]} Ng5 {[%emt 0:00:24]} 12. f4 {[%emt 0:00:19]} Ne4 {[%emt 0:00:59]} 13. Nd2 {[%emt 0:03:11]} Nxd2 {[%emt 0:02:22]} 14. Qxd2 {[%emt 0:02:14]} Qe7 {[%emt 0:01:42]} 15. Nb3 {[%emt 0:04:34]} O-O {[%emt 0:04:45]} 16. Qf2 {[%emt 0:09:15]} f6 {[%emt 0:03:58]} 17. Bc5 {[%emt 0:13:44]} Qe6 {[%emt 0:01:48]} 18. exf6 {[%emt 0:17:17]} Qxf6 {[%emt 0:00:49]} 19. c3 {[%emt 0:01:12]} Rae8 {[%emt 0:06:23]} 20. a4 {[%emt 0:03:33]} Bg4 {[%emt 0:07:05]} 21. Rae1 {[%emt 0:04:57]} Rxe1 {[%emt 0:03:23]} 22. Rxe1 {[%emt 0:00:18]} Qxf4 {[%emt 0:00:24]} 23. Qxf4 {[%emt 0:00:10]} Bxc5+ {[%emt 0:00:03]} 24. Nxc5 {[%emt 0:01:29]} Rxf4 {[%emt 0:00:17]} 25. h3 {[%emt 0:09:20]} Bf5 {[%emt 0:11:15]} 26. Re8+ {[%emt 0:01:59]} Kf7 {[%emt 0:00:12]} 27. Ra8 {[%emt 0:00:08]} Rc4 {[%emt 0:00:22]} 28. b4 {[%emt 0:00:25]} Ke7 {[%emt 0:03:36]} 29. Rxa7 {[%emt 0:00:11]} Kd6 {[%emt 0:04:02]} 30. a5 {[%emt 0:04:18]} Rxc3 {[%emt 0:00:21]} 31. a6 {[%emt 0:00:45]} d4 {[%emt 0:06:51]} 32. Ra8 {[%emt 0:01:28]} d3 {[%emt 0:00:05]} 33. Nxd3 {[%emt 0:05:04]} Ra3 {[%emt 0:04:14]} 34. Nc5 {[%emt 0:00:08]} Ke5 {[%emt 0:00:22]} 35. a7 {[%emt 0:03:45]} Kf4 {[%emt 0:00:34]} 36. Rf8 {[%emt 0:01:41]} Rxa7 {[%emt 0:00:12]} 37. g4 {[%emt 0:00:13]} Kg3 {[%emt 0:03:11]} 38. Rxf5 {[%emt 0:00:14]} Ra1+ {[%emt 0:00:04]} 39. Rf1 {[%emt 0:00:09]} Ra2 {[%emt 0:00:02]} 40. Rf7 {[%emt 0:01:51]} Ra1+ {[%emt 0:00:07]} 41. Rf1 {[%emt 0:30:11]} Ra2 {[%emt 0:30:06]} 42. Ne4+ {[%emt 0:00:00]} Kxh3 {[%emt 0:00:00]} 43. Rf4 {[%emt 0:00:00]} g5 {[%emt 0:00:00]} 44. Rf5 {[%emt 0:00:00]} Kxg4 {[%emt 0:00:00]} 45. Rxg5+ {[%emt 0:00:00]} Kf4 {[%emt 0:00:00]} 46. Ra5 {[%emt 0:00:00]} Rb2 {[%emt 0:00:00]} 47. Nc5 {[%emt 0:00:00]} Ke3 {[%emt 0:00:00]} 48. Na6 {[%emt 0:00:00]} Kd4 {[%emt 0:00:00]} 49. Rh5 {[%emt 0:00:00]} Ra2 {[%emt 0:00:00]} 50. Nb8 {[%emt 0:00:00]} Rc2 {[%emt 0:00:00]} 51. Kf1 {[%emt 0:01:15]} Rc4 {[%emt 0:00:00]} 52. Ke2 {[%emt 0:03:01]} Kc3 {[%emt 0:00:00]} 53. Na6 {[%emt 0:00:07]} Re4+ {[%emt 0:00:00]} 54. Kf3 {[%emt 0:00:31]} Re6 {[%emt 0:00:00]} 55. Rxh7 {[%emt 0:01:03]} c5 {[%emt 0:00:00]} 56. Nxc7 {[%emt 0:01:01]} Rg6 {[%emt 0:00:00]} 57. b5 {[%emt 0:00:57]} Kb4 {[%emt 0:00:00]} 58. b6 {[%emt 0:00:26]} Ka5 {[%emt 0:00:00]} 59. Nd5 {[%emt 0:01:11]} Kb5 {[%emt 0:00:00]} 60. Rh8 {[%emt 0:01:25]} Rg7 {[%emt 0:00:41]} 61. Rh6 {[%emt 0:00:45]} Ka6 {[%emt 0:02:16]} 62. Ke4 {[%emt 0:00:12]} Rg4+ {[%emt 0:00:10]} 63. Ke5 {[%emt 0:00:17]} c4 {[%emt 0:00:13]} 64. Rc6 {[%emt 0:00:54]} 1-0